[Event "Titled Tuesday Blitz January 31 Early 2023"]
[White "Klose, Eli"]
[Black "Wahedi, Ahmad Siar"]
[WhiteFideId "16242955"]
[BlackFideId "4651260"]
[WhiteElo "1519"]
[BlackElo "2274"]
[Result "1-0"]
[Round "04"]
[TimeControl "180+2"]
[Date "2023.01.31"]
[WhiteClock "0:00:18"]
[BlackClock "0:00:44"]

1. e4 {[%clk 0:03:00]}  e6 {[%clk 0:02:58]} 2. Nf3 {[%clk 0:02:57]}  c5 {[%clk 0:02:56]} 3. Nc3 {[%clk 0:02:52]}  Nc6 {[%clk 0:02:56]} 4. d4 {[%clk 0:02:53]}  cxd4 {[%clk 0:02:56]} 5. Nxd4 {[%clk 0:02:53]}  Nf6 {[%clk 0:02:56]} 6. Nxc6 {[%clk 0:02:51]}  dxc6 {[%clk 0:02:54]} 7. Qxd8+ {[%clk 0:02:49]}  Kxd8 {[%clk 0:02:54]} 8. Bg5 {[%clk 0:02:49]}  Be7 {[%clk 0:02:54]} 9. O-O-O+ {[%clk 0:02:47]}  Nd7 {[%clk 0:02:54]} 10. Be3 {[%clk 0:02:36]}  b6 {[%clk 0:02:53]} 11. f4 {[%clk 0:02:33]}  Bb7 {[%clk 0:02:53]} 12. Be2 {[%clk 0:02:32]}  Kc7 {[%clk 0:02:52]} 13. Bf3 {[%clk 0:02:29]}  e5 {[%clk 0:02:45]} 14. Bg4 {[%clk 0:02:24]}  Rad8 {[%clk 0:02:43]} 15. Bxd7 {[%clk 0:02:22]}  Rxd7 {[%clk 0:02:43]} 16. fxe5 {[%clk 0:02:23]}  Rhd8 {[%clk 0:02:28]} 17. Rxd7+ {[%clk 0:02:15]}  Rxd7 {[%clk 0:02:28]} 18. Bf4 {[%clk 0:02:15]}  Kd8 {[%clk 0:02:26]} 19. Rd1 {[%clk 0:02:12]}  Rxd1+ {[%clk 0:02:25]} 20. Kxd1 {[%clk 0:02:13]}  Kd7 {[%clk 0:02:24]} 21. Ke2 {[%clk 0:01:48]}  Ke6 {[%clk 0:02:23]} 22. Kf3 {[%clk 0:01:49]}  Bd8 {[%clk 0:02:16]} 23. Ne2 {[%clk 0:01:48]}  c5 {[%clk 0:02:16]} 24. Bg3 {[%clk 0:01:47]}  g5 {[%clk 0:02:12]} 25. Nc1 {[%clk 0:01:30]}  h5 {[%clk 0:02:03]} 26. h3 {[%clk 0:01:27]}  Bc7 {[%clk 0:02:01]} 27. h4 {[%clk 0:01:19]}  g4+ {[%clk 0:01:58]} 28. Ke3 {[%clk 0:01:17]}  f6 {[%clk 0:01:56]} 29. Nd3 {[%clk 0:01:08]}  c4 {[%clk 0:01:47]} 30. Nf4+ {[%clk 0:01:06]}  Kf7 {[%clk 0:01:42]} 31. e6+ {[%clk 0:00:57]}  Ke8 {[%clk 0:01:30]} 32. Nxh5 {[%clk 0:00:57]}  Be5 {[%clk 0:01:25]} 33. Bxe5 {[%clk 0:00:50]}  fxe5 {[%clk 0:01:25]} 34. Nf6+ {[%clk 0:00:50]}  Ke7 {[%clk 0:01:25]} 35. Nxg4 {[%clk 0:00:51]}  Kxe6 {[%clk 0:01:26]} 36. Nf2 {[%clk 0:00:44]}  Bc6 {[%clk 0:01:25]} 37. g4 {[%clk 0:00:44]}  Be8 {[%clk 0:01:25]} 38. Nh1 {[%clk 0:00:39]}  Kf6 {[%clk 0:01:23]} 39. Ng3 {[%clk 0:00:39]}  Bd7 {[%clk 0:01:23]} 40. g5+ {[%clk 0:00:39]}  Kg6 {[%clk 0:01:23]} 41. b3 {[%clk 0:00:37]}  cxb3 {[%clk 0:01:19]} 42. cxb3 {[%clk 0:00:38]}  a5 {[%clk 0:01:18]} 43. Kd3 {[%clk 0:00:35]}  Be6 {[%clk 0:01:18]} 44. Kc3 {[%clk 0:00:35]}  b5 {[%clk 0:01:17]} 45. a3 {[%clk 0:00:34]}  Bd7 {[%clk 0:01:15]} 46. b4 {[%clk 0:00:30]}  a4 {[%clk 0:01:14]} 47. Kd3 {[%clk 0:00:31]}  Bg4 {[%clk 0:01:13]} 48. Ke3 {[%clk 0:00:31]}  Be6 {[%clk 0:01:09]} 49. Kf3 {[%clk 0:00:31]}  Bd7 {[%clk 0:01:09]} 50. Nf5 {[%clk 0:00:31]}  Be6 {[%clk 0:01:00]} 51. Kg3 {[%clk 0:00:29]}  Bd7 {[%clk 0:00:56]} 52. Kg4 {[%clk 0:00:29]}  Be6 {[%clk 0:00:52]} 53. h5+ {[%clk 0:00:29]}  Kf7 {[%clk 0:00:53]} 54. Kh4 {[%clk 0:00:17]}  Bd7 {[%clk 0:00:53]} 55. Nh6+ {[%clk 0:00:16]}  Kg7 {[%clk 0:00:53]} 56. Ng4 {[%clk 0:00:17]}  Be6 {[%clk 0:00:49]} 57. g6 {[%clk 0:00:16]}  Bb3 {[%clk 0:00:46]} 58. Kg5 {[%clk 0:00:16]}  Bc2 {[%clk 0:00:46]} 59. h6+ {[%clk 0:00:17]}  Kf8 {[%clk 0:00:45]} 60. g7+ {[%clk 0:00:17]}  Kf7 {[%clk 0:00:45]} 61. Nf6 {[%clk 0:00:17]}  Ke7 {[%clk 0:00:44]} 62. g8=Q {[%clk 0:00:18]}  Bb3 {[%clk 0:00:44]} 63. Qe8+ {[%clk 0:00:17]}  Kd6 {[%clk 0:00:44]} 64. Qd7# {[%clk 0:00:18]} 1-0


[Site "https://www.chess.com"]

[Event "Titled Tuesday Blitz January 31 Early 2023"]
[White "Skvortsov, Andrei"]
[Black "Sowul, Bartosz"]
[WhiteFideId "24108600"]
[BlackFideId "1137590"]
[WhiteElo "2313"]
[BlackElo "2269"]
[Result "1-0"]
[Round "04"]
[TimeControl "180+2"]
[Date "2023.01.31"]
[WhiteClock "0:01:21"]
[BlackClock "0:00:37"]

1. e4 {[%clk 0:02:47]}  c5 {[%clk 0:02:59]} 2. Ne2 {[%clk 0:02:40]}  Nc6 {[%clk 0:02:57]} 3. Nbc3 {[%clk 0:02:33]}  Nf6 {[%clk 0:02:45]} 4. d3 {[%clk 0:02:19]}  e6 {[%clk 0:02:38]} 5. f4 {[%clk 0:02:17]}  d5 {[%clk 0:02:37]} 6. e5 {[%clk 0:02:18]}  Ng4 {[%clk 0:02:33]} 7. Ng1 {[%clk 0:02:13]}  h5 {[%clk 0:02:29]} 8. Nf3 {[%clk 0:02:14]}  Nd4 {[%clk 0:02:10]} 9. Nxd4 {[%clk 0:02:02]}  cxd4 {[%clk 0:02:11]} 10. Ne2 {[%clk 0:02:02]}  Bc5 {[%clk 0:02:05]} 11. h3 {[%clk 0:01:54]}  Nh6 {[%clk 0:02:01]} 12. g3 {[%clk 0:01:49]}  Nf5 {[%clk 0:01:47]} 13. Bg2 {[%clk 0:01:49]}  b5 {[%clk 0:01:37]} 14. O-O {[%clk 0:01:45]}  Bd7 {[%clk 0:01:28]} 15. Kh2 {[%clk 0:01:43]}  f6 {[%clk 0:01:17]} 16. exf6 {[%clk 0:01:43]}  gxf6 {[%clk 0:01:18]} 17. h4 {[%clk 0:01:40]}  Kf7 {[%clk 0:01:09]} 18. Bh3 {[%clk 0:01:40]}  Nh6 {[%clk 0:01:06]} 19. Ng1 {[%clk 0:01:37]}  Ng4+ {[%clk 0:00:57]} 20. Bxg4 {[%clk 0:01:36]}  hxg4 {[%clk 0:00:58]} 21. Qxg4 {[%clk 0:01:36]}  e5 {[%clk 0:00:57]} 22. f5 {[%clk 0:01:36]}  Qf8 {[%clk 0:00:56]} 23. Nh3 {[%clk 0:01:29]}  Ke7 {[%clk 0:00:52]} 24. Qf3 {[%clk 0:01:29]}  Bc6 {[%clk 0:00:52]} 25. c3 {[%clk 0:01:24]}  Qf7 {[%clk 0:00:51]} 26. cxd4 {[%clk 0:01:24]}  Bxd4 {[%clk 0:00:52]} 27. Be3 {[%clk 0:01:24]}  Bxb2 {[%clk 0:00:51]} 28. Rab1 {[%clk 0:01:24]}  Bc3 {[%clk 0:00:50]} 29. Bc5+ {[%clk 0:01:25]}  Kd7 {[%clk 0:00:50]} 30. d4 {[%clk 0:01:25]}  Bxd4 {[%clk 0:00:46]} 31. Bxd4 {[%clk 0:01:25]}  exd4 {[%clk 0:00:47]} 32. Nf4 {[%clk 0:01:26]}  Rag8 {[%clk 0:00:46]} 33. Ng6 {[%clk 0:01:24]}  Rh6 {[%clk 0:00:45]} 34. Qa3 {[%clk 0:01:23]}  Ra8 {[%clk 0:00:37]} 35. Rfe1 {[%clk 0:01:23]}  Rxg6 {[%clk 0:00:36]} 36. fxg6 {[%clk 0:01:24]}  Qxg6 {[%clk 0:00:37]} 37. Qe7+ {[%clk 0:01:21]}  Kc8 {[%clk 0:00:37]} 38. Rbc1 {[%clk 0:01:21]} 1-0


[Site "https://www.chess.com"]

[Event "Titled Tuesday Blitz January 31 Early 2023"]
[White "Babikov, Ivan"]
[Black "Kim, Sergey"]
[WhiteFideId "4161106"]
[BlackFideId "13700570"]
[WhiteElo "2239"]
[BlackElo "2295"]
[Result "0-1"]
[Round "04"]
[TimeControl "180+2"]
[Date "2023.01.31"]
[WhiteClock "0:00:43"]
[BlackClock "0:01:05"]

1. d4 {[%clk 0:02:57]}  Nf6 {[%clk 0:02:56]} 2. Bg5 {[%clk 0:02:56]}  g6 {[%clk 0:02:56]} 3. Bxf6 {[%clk 0:02:56]}  exf6 {[%clk 0:02:56]} 4. e4 {[%clk 0:02:55]}  h5 {[%clk 0:02:56]} 5. c3 {[%clk 0:02:56]}  d6 {[%clk 0:02:56]} 6. Nf3 {[%clk 0:02:55]}  h4 {[%clk 0:02:53]} 7. h3 {[%clk 0:02:54]}  f5 {[%clk 0:02:52]} 8. e5 {[%clk 0:02:52]}  dxe5 {[%clk 0:02:49]} 9. Nxe5 {[%clk 0:02:52]}  Bg7 {[%clk 0:02:44]} 10. Nf3 {[%clk 0:02:49]}  O-O {[%clk 0:02:43]} 11. Be2 {[%clk 0:02:49]}  Nd7 {[%clk 0:02:36]} 12. Qd2 {[%clk 0:02:48]}  Nf6 {[%clk 0:02:33]} 13. O-O {[%clk 0:02:46]}  Ne4 {[%clk 0:02:33]} 14. Qc2 {[%clk 0:02:40]}  c5 {[%clk 0:02:28]} 15. Nbd2 {[%clk 0:02:39]}  cxd4 {[%clk 0:02:24]} 16. cxd4 {[%clk 0:02:30]}  Nxd2 {[%clk 0:02:18]} 17. Qxd2 {[%clk 0:02:29]}  Be6 {[%clk 0:02:15]} 18. Rfd1 {[%clk 0:02:26]}  Bd5 {[%clk 0:02:14]} 19. Qf4 {[%clk 0:02:19]}  Re8 {[%clk 0:02:03]} 20. Rd2 {[%clk 0:01:57]}  Re4 {[%clk 0:01:58]} 21. Qg5 {[%clk 0:01:46]}  Bf6 {[%clk 0:01:46]} 22. Qh6 {[%clk 0:01:43]}  Rc8 {[%clk 0:01:44]} 23. Bd3 {[%clk 0:01:37]}  Re8 {[%clk 0:01:42]} 24. Qf4 {[%clk 0:01:32]}  Bxf3 {[%clk 0:01:29]} 25. gxf3 {[%clk 0:01:20]}  Bg5 {[%clk 0:01:26]} 26. Qh2 {[%clk 0:00:58]}  Bxd2 {[%clk 0:01:26]} 27. Kh1 {[%clk 0:00:56]}  Qxd4 {[%clk 0:01:22]} 28. Bxf5 {[%clk 0:00:48]}  Rc1+ {[%clk 0:01:15]} 29. Rxc1 {[%clk 0:00:47]}  Bxc1 {[%clk 0:01:15]} 30. Bc2 {[%clk 0:00:44]}  Re1+ {[%clk 0:01:04]} 31. Kg2 {[%clk 0:00:44]}  Re2 {[%clk 0:01:05]} 32. Qb8+ {[%clk 0:00:43]}  Kg7 {[%clk 0:01:05]} 0-1


[Site "https://www.chess.com"]

[Event "Titled Tuesday Blitz January 31 Early 2023"]
[White "Fiorito, Francisco"]
[Black "Kirillov, Dmitry"]
[WhiteFideId "180165"]
[BlackFideId "34180572"]
[WhiteElo "2305"]
[BlackElo "2179"]
[Result "1-0"]
[Round "04"]
[TimeControl "180+2"]
[Date "2023.01.31"]
[WhiteClock "0:01:50"]
[BlackClock "0:00:03"]

1. Nf3 {[%clk 0:03:00]}  d5 {[%clk 0:02:57]} 2. g3 {[%clk 0:03:01]}  c5 {[%clk 0:02:42]} 3. Bg2 {[%clk 0:03:01]}  Nc6 {[%clk 0:02:43]} 4. d4 {[%clk 0:03:01]}  Nf6 {[%clk 0:02:43]} 5. O-O {[%clk 0:03:01]}  cxd4 {[%clk 0:02:43]} 6. Nxd4 {[%clk 0:03:02]}  e5 {[%clk 0:02:43]} 7. Nxc6 {[%clk 0:03:02]}  bxc6 {[%clk 0:02:44]} 8. c4 {[%clk 0:03:03]}  Be6 {[%clk 0:02:44]} 9. Nc3 {[%clk 0:03:04]}  Rc8 {[%clk 0:02:05]} 10. Bg5 {[%clk 0:02:34]}  d4 {[%clk 0:01:55]} 11. Ne4 {[%clk 0:02:30]}  Be7 {[%clk 0:01:55]} 12. Nxf6+ {[%clk 0:02:28]}  gxf6 {[%clk 0:01:49]} 13. Bh6 {[%clk 0:02:26]}  Bxc4 {[%clk 0:01:10]} 14. Qa4 {[%clk 0:02:25]}  Bd5 {[%clk 0:00:30]} 15. Qxa7 {[%clk 0:02:17]}  Bxg2 {[%clk 0:00:22]} 16. Kxg2 {[%clk 0:02:18]}  Qd7 {[%clk 0:00:22]} 17. Qa6 {[%clk 0:02:12]}  c5 {[%clk 0:00:19]} 18. b3 {[%clk 0:02:12]}  Qc6+ {[%clk 0:00:19]} 19. Qxc6+ {[%clk 0:02:12]}  Rxc6 {[%clk 0:00:20]} 20. Rac1 {[%clk 0:02:09]}  Kd7 {[%clk 0:00:20]} 21. Rc4 {[%clk 0:02:09]}  Ra8 {[%clk 0:00:20]} 22. Rc2 {[%clk 0:02:08]}  Ke6 {[%clk 0:00:11]} 23. g4 {[%clk 0:02:06]}  Kd5 {[%clk 0:00:12]} 24. f3 {[%clk 0:02:06]}  c4 {[%clk 0:00:12]} 25. Rfc1 {[%clk 0:02:04]}  c3 {[%clk 0:00:11]} 26. Rd1 {[%clk 0:02:04]}  Ba3 {[%clk 0:00:11]} 27. Rd3 {[%clk 0:02:03]}  Bb2 {[%clk 0:00:11]} 28. h4 {[%clk 0:01:59]}  Rxa2 {[%clk 0:00:09]} 29. g5 {[%clk 0:01:56]}  f5 {[%clk 0:00:09]} 30. e3 {[%clk 0:01:52]}  Ra3 {[%clk 0:00:03]} 31. Bg7 {[%clk 0:01:50]}  Rxb3 {[%clk 0:00:01]} 32. exd4 {[%clk 0:01:51]}  exd4 {[%clk 0:00:02]} 33. Rxd4+ {[%clk 0:01:50]}  Ke6 {[%clk 0:00:03]} 34. Re2# {[%clk 0:01:50]} 1-0


[Site "https://www.chess.com"]

[Event "Titled Tuesday Blitz January 31 Early 2023"]
[White "Gjestemoen-VonHirsch, Andre"]
[Black "Berezin, Viktor"]
[WhiteFideId "1539531"]
[BlackFideId "14107872"]
[WhiteElo "2314"]
[BlackElo "2307"]
[Result "1-0"]
[Round "04"]
[TimeControl "180+2"]
[Date "2023.01.31"]
[WhiteClock "0:00:13"]
[BlackClock "0:00:13"]

1. e4 {[%clk 0:03:00]}  g6 {[%clk 0:02:57]} 2. c4 {[%clk 0:02:48]}  Bg7 {[%clk 0:02:57]} 3. Nc3 {[%clk 0:02:48]}  d6 {[%clk 0:02:57]} 4. Nge2 {[%clk 0:02:49]}  Nf6 {[%clk 0:02:57]} 5. g3 {[%clk 0:02:48]}  O-O {[%clk 0:02:57]} 6. Bg2 {[%clk 0:02:49]}  e5 {[%clk 0:02:58]} 7. O-O {[%clk 0:02:49]}  Nc6 {[%clk 0:02:58]} 8. Rb1 {[%clk 0:02:47]}  Nd7 {[%clk 0:02:57]} 9. b4 {[%clk 0:02:43]}  Nd4 {[%clk 0:02:56]} 10. b5 {[%clk 0:02:29]}  Nc5 {[%clk 0:02:54]} 11. d3 {[%clk 0:02:29]}  Be6 {[%clk 0:02:47]} 12. Ba3 {[%clk 0:02:27]}  Qd7 {[%clk 0:02:44]} 13. Nxd4 {[%clk 0:02:18]}  exd4 {[%clk 0:02:43]} 14. Nd5 {[%clk 0:02:16]}  f5 {[%clk 0:02:11]} 15. Bxc5 {[%clk 0:02:05]}  dxc5 {[%clk 0:02:11]} 16. exf5 {[%clk 0:02:06]}  Bxf5 {[%clk 0:02:09]} 17. Re1 {[%clk 0:01:55]}  Rae8 {[%clk 0:02:05]} 18. Qd2 {[%clk 0:01:43]}  Bg4 {[%clk 0:01:39]} 19. Qg5 {[%clk 0:01:24]}  Be6 {[%clk 0:01:12]} 20. Nf4 {[%clk 0:00:52]}  Bf5 {[%clk 0:01:03]} 21. Bd5+ {[%clk 0:00:23]}  Kh8 {[%clk 0:01:01]} 22. Bxb7 {[%clk 0:00:23]}  Rxe1+ {[%clk 0:00:43]} 23. Rxe1 {[%clk 0:00:22]}  Bf6 {[%clk 0:00:43]} 24. Qh6 {[%clk 0:00:19]}  Re8 {[%clk 0:00:31]} 25. Rxe8+ {[%clk 0:00:16]}  Qxe8 {[%clk 0:00:31]} 26. Ng2 {[%clk 0:00:15]}  Bxd3 {[%clk 0:00:25]} 27. Bd5 {[%clk 0:00:15]}  Bg7 {[%clk 0:00:21]} 28. Qd2 {[%clk 0:00:14]}  Bf5 {[%clk 0:00:19]} 29. Nf4 {[%clk 0:00:13]}  h6 {[%clk 0:00:18]} 30. h4 {[%clk 0:00:10]}  Kh7 {[%clk 0:00:18]} 31. h5 {[%clk 0:00:08]}  g5 {[%clk 0:00:19]} 32. Ng6 {[%clk 0:00:08]}  Bxg6 {[%clk 0:00:16]} 33. hxg6+ {[%clk 0:00:09]}  Qxg6 {[%clk 0:00:16]} 34. Qe1 {[%clk 0:00:09]}  Qf6 {[%clk 0:00:14]} 35. Qe4+ {[%clk 0:00:09]}  Qg6 {[%clk 0:00:12]} 36. Bg8+ {[%clk 0:00:09]}  Kxg8 {[%clk 0:00:09]} 37. Qxg6 {[%clk 0:00:09]}  Kf8 {[%clk 0:00:10]} 38. Qe6 {[%clk 0:00:09]}  d3 {[%clk 0:00:08]} 39. Qc8+ {[%clk 0:00:06]}  Kf7 {[%clk 0:00:09]} 40. Qf5+ {[%clk 0:00:06]}  Kg8 {[%clk 0:00:09]} 41. Qxd3 {[%clk 0:00:07]}  Bd4 {[%clk 0:00:09]} 42. Qg6+ {[%clk 0:00:06]}  Kf8 {[%clk 0:00:09]} 43. Qc6 {[%clk 0:00:06]}  Be5 {[%clk 0:00:08]} 44. Qa8+ {[%clk 0:00:07]}  Ke7 {[%clk 0:00:08]} 45. Qxa7 {[%clk 0:00:08]}  Bd4 {[%clk 0:00:09]} 46. a4 {[%clk 0:00:09]}  Kd6 {[%clk 0:00:10]} 47. Kg2 {[%clk 0:00:09]}  h5 {[%clk 0:00:10]} 48. Qa6+ {[%clk 0:00:09]}  Ke5 {[%clk 0:00:10]} 49. Qg6 {[%clk 0:00:09]}  g4 {[%clk 0:00:10]} 50. Qxh5+ {[%clk 0:00:09]}  Ke4 {[%clk 0:00:11]} 51. Qxg4+ {[%clk 0:00:10]}  Kd3 {[%clk 0:00:11]} 52. Qe6 {[%clk 0:00:09]}  Kc3 {[%clk 0:00:11]} 53. Qd5 {[%clk 0:00:10]}  Kd3 {[%clk 0:00:11]} 54. a5 {[%clk 0:00:11]}  Ke2 {[%clk 0:00:12]} 55. a6 {[%clk 0:00:11]}  Bxf2 {[%clk 0:00:12]} 56. Qf3+ {[%clk 0:00:11]}  Kd2 {[%clk 0:00:12]} 57. Qxf2+ {[%clk 0:00:12]}  Kc3 {[%clk 0:00:13]} 58. Qxc5 {[%clk 0:00:13]} 1-0


[Site "https://www.chess.com"]

[Event "Titled Tuesday Blitz January 31 Early 2023"]
[White "Foerster-Yialamas, Lucas"]
[Black "Ilkhomi, Jaloliddin"]
[WhiteFideId "30901774"]
[BlackFideId "14700948"]
[WhiteElo "2151"]
[BlackElo "1997"]
[Result "0-1"]
[Round "04"]
[TimeControl "180+2"]
[Date "2023.01.31"]
[WhiteClock "0:01:58"]
[BlackClock "0:01:40"]

1. Nf3 {[%clk 0:03:00]}  Nf6 {[%clk 0:02:58]} 2. b3 {[%clk 0:03:01]}  d5 {[%clk 0:02:49]} 3. Bb2 {[%clk 0:03:00]}  e6 {[%clk 0:02:49]} 4. e3 {[%clk 0:02:59]}  b6 {[%clk 0:02:50]} 5. c4 {[%clk 0:02:58]}  Bb7 {[%clk 0:02:50]} 6. d4 {[%clk 0:02:56]}  Nbd7 {[%clk 0:02:50]} 7. Nc3 {[%clk 0:02:55]}  Bd6 {[%clk 0:02:51]} 8. Rc1 {[%clk 0:02:53]}  a6 {[%clk 0:02:50]} 9. a3 {[%clk 0:02:52]}  O-O {[%clk 0:02:50]} 10. b4 {[%clk 0:02:51]}  c5 {[%clk 0:02:49]} 11. bxc5 {[%clk 0:02:51]}  bxc5 {[%clk 0:02:49]} 12. dxc5 {[%clk 0:02:50]}  Nxc5 {[%clk 0:02:50]} 13. cxd5 {[%clk 0:02:50]}  Nxd5 {[%clk 0:02:47]} 14. Nxd5 {[%clk 0:02:49]}  Bxd5 {[%clk 0:02:47]} 15. Qd4 {[%clk 0:02:43]}  f6 {[%clk 0:02:31]} 16. Rxc5 {[%clk 0:02:32]}  Bxc5 {[%clk 0:02:03]} 17. Qxc5 {[%clk 0:02:33]}  Rb8 {[%clk 0:01:58]} 18. Qc3 {[%clk 0:02:10]}  Qb6 {[%clk 0:01:45]} 19. Bc1 {[%clk 0:02:07]}  Rfc8 {[%clk 0:01:44]} 20. Qd2 {[%clk 0:02:06]}  Qb1 {[%clk 0:01:43]} 21. Bxa6 {[%clk 0:02:00]}  Rxc1+ {[%clk 0:01:41]} 22. Ke2 {[%clk 0:01:58]}  Rxh1 {[%clk 0:01:40]} 0-1


[Site "https://www.chess.com"]

[Event "Titled Tuesday Blitz January 31 Early 2023"]
[White "Toncheva, Nadya"]
[Black "Andreev, Konstantin"]
[WhiteFideId "2924056"]
[BlackFideId "24239305"]
[WhiteElo "2295"]
[BlackElo "2195"]
[Result "0-1"]
[Round "04"]
[TimeControl "180+2"]
[Date "2023.01.31"]
[WhiteClock "0:00:05"]
[BlackClock "0:00:05"]

1. d4 {[%clk 0:03:00]}  Nf6 {[%clk 0:02:57]} 2. c4 {[%clk 0:02:59]}  e6 {[%clk 0:02:56]} 3. Nc3 {[%clk 0:03:00]}  Bb4 {[%clk 0:02:57]} 4. e3 {[%clk 0:03:00]}  O-O {[%clk 0:02:55]} 5. Ne2 {[%clk 0:03:01]}  b6 {[%clk 0:02:54]} 6. a3 {[%clk 0:03:00]}  Be7 {[%clk 0:02:54]} 7. Nf4 {[%clk 0:02:59]}  Bb7 {[%clk 0:02:55]} 8. Bd3 {[%clk 0:03:00]}  h6 {[%clk 0:02:55]} 9. O-O {[%clk 0:02:59]}  c5 {[%clk 0:02:55]} 10. d5 {[%clk 0:02:56]}  exd5 {[%clk 0:02:47]} 11. cxd5 {[%clk 0:02:56]}  d6 {[%clk 0:02:48]} 12. e4 {[%clk 0:02:55]}  Nbd7 {[%clk 0:02:48]} 13. Nfe2 {[%clk 0:02:44]}  a6 {[%clk 0:02:47]} 14. Ng3 {[%clk 0:02:44]}  b5 {[%clk 0:02:38]} 15. f4 {[%clk 0:02:44]}  c4 {[%clk 0:02:34]} 16. Bc2 {[%clk 0:02:43]}  Nc5 {[%clk 0:02:32]} 17. Kh1 {[%clk 0:02:42]}  Bc8 {[%clk 0:02:26]} 18. Be3 {[%clk 0:02:36]}  Ng4 {[%clk 0:02:14]} 19. Bd4 {[%clk 0:02:34]}  Bf6 {[%clk 0:02:12]} 20. Bxc5 {[%clk 0:02:28]}  dxc5 {[%clk 0:02:11]} 21. Qf3 {[%clk 0:02:22]}  Bd4 {[%clk 0:02:08]} 22. Rae1 {[%clk 0:02:12]}  Nxh2 {[%clk 0:02:03]} 23. Qh5 {[%clk 0:02:04]}  Nxf1 {[%clk 0:01:59]} 24. Rxf1 {[%clk 0:02:05]}  Ra7 {[%clk 0:01:30]} 25. Rf3 {[%clk 0:01:50]}  f5 {[%clk 0:01:23]} 26. Nxf5 {[%clk 0:01:41]}  Bxf5 {[%clk 0:01:21]} 27. exf5 {[%clk 0:01:42]}  b4 {[%clk 0:01:20]} 28. Ne4 {[%clk 0:01:36]}  Qxd5 {[%clk 0:01:15]} 29. Qg6 {[%clk 0:01:24]}  Qxf5 {[%clk 0:00:56]} 30. Qb6 {[%clk 0:00:56]}  Re7 {[%clk 0:00:36]} 31. Qc6 {[%clk 0:00:45]}  Qe6 {[%clk 0:00:29]} 32. Qa4 {[%clk 0:00:32]}  b3 {[%clk 0:00:21]} 33. Bb1 {[%clk 0:00:32]}  Qd5 {[%clk 0:00:19]} 34. Qxa6 {[%clk 0:00:22]}  Qh5+ {[%clk 0:00:14]} 35. Rh3 {[%clk 0:00:21]}  Qd1+ {[%clk 0:00:15]} 36. Kh2 {[%clk 0:00:20]}  Qxb1 {[%clk 0:00:12]} 37. Qxc4+ {[%clk 0:00:20]}  Kh7 {[%clk 0:00:11]} 38. Ng5+ {[%clk 0:00:17]}  Kh8 {[%clk 0:00:09]} 39. Qa6 {[%clk 0:00:14]}  Qg1+ {[%clk 0:00:08]} 40. Kg3 {[%clk 0:00:14]}  Qf2+ {[%clk 0:00:07]} 41. Kh2 {[%clk 0:00:12]}  Qxf4+ {[%clk 0:00:07]} 42. Rg3 {[%clk 0:00:09]}  Be5 {[%clk 0:00:05]} 43. Ne4 {[%clk 0:00:05]}  Qxe4 {[%clk 0:00:04]} 44. Kh1 {[%clk 0:00:05]}  Qe1+ {[%clk 0:00:04]} 45. Kh2 {[%clk 0:00:05]}  Bxg3+ {[%clk 0:00:05]} 0-1


[Site "https://www.chess.com"]

[Event "Titled Tuesday Blitz January 31 Early 2023"]
[White "Derjabin, Ilja"]
[Black "Ramirez Vido, Robert Yorisan"]
[WhiteFideId "14104768"]
[BlackFideId "3513823"]
[WhiteElo "2333"]
[BlackElo "2015"]
[Result "1-0"]
[Round "04"]
[TimeControl "180+2"]
[Date "2023.01.31"]
[WhiteClock "0:00:41"]
[BlackClock "0:00:01"]

1. d4 {[%clk 0:03:00]}  g6 {[%clk 0:02:47]} 2. c4 {[%clk 0:03:00]}  Nf6 {[%clk 0:02:47]} 3. Nc3 {[%clk 0:02:59]}  Bg7 {[%clk 0:02:46]} 4. e4 {[%clk 0:02:59]}  d6 {[%clk 0:02:47]} 5. Nge2 {[%clk 0:02:59]}  O-O {[%clk 0:02:46]} 6. Ng3 {[%clk 0:02:59]}  e5 {[%clk 0:02:46]} 7. d5 {[%clk 0:02:59]}  c6 {[%clk 0:02:42]} 8. Be2 {[%clk 0:02:58]}  a5 {[%clk 0:02:39]} 9. O-O {[%clk 0:02:57]}  Na6 {[%clk 0:02:40]} 10. Be3 {[%clk 0:02:55]}  Ne8 {[%clk 0:02:30]} 11. Kh1 {[%clk 0:02:53]}  f5 {[%clk 0:02:30]} 12. exf5 {[%clk 0:02:53]}  gxf5 {[%clk 0:02:30]} 13. f4 {[%clk 0:02:53]}  e4 {[%clk 0:02:31]} 14. Nh5 {[%clk 0:02:53]}  Bh8 {[%clk 0:02:13]} 15. g4 {[%clk 0:02:51]}  Nf6 {[%clk 0:01:58]} 16. gxf5 {[%clk 0:02:48]}  Bxf5 {[%clk 0:01:51]} 17. Rg1+ {[%clk 0:02:48]}  Kf7 {[%clk 0:01:51]} 18. Rg5 {[%clk 0:02:35]}  Qd7 {[%clk 0:01:43]} 19. dxc6 {[%clk 0:02:29]}  bxc6 {[%clk 0:01:41]} 20. Ng3 {[%clk 0:02:22]}  Bh3 {[%clk 0:01:28]} 21. Ncxe4 {[%clk 0:02:01]}  h6 {[%clk 0:01:24]} 22. Nxd6+ {[%clk 0:01:56]}  Ke7 {[%clk 0:01:17]} 23. Re5+ {[%clk 0:01:55]}  Kd8 {[%clk 0:00:52]} 24. Bb6+ {[%clk 0:01:55]}  Nc7 {[%clk 0:00:50]} 25. Bf3 {[%clk 0:01:23]}  Ra6 {[%clk 0:00:24]} 26. Bxa5 {[%clk 0:00:59]}  Rxa5 {[%clk 0:00:17]} 27. Rxa5 {[%clk 0:00:59]}  Nfe8 {[%clk 0:00:15]} 28. Nxe8 {[%clk 0:00:52]}  Qxd1+ {[%clk 0:00:11]} 29. Rxd1+ {[%clk 0:00:51]}  Kxe8 {[%clk 0:00:12]} 30. Bxc6+ {[%clk 0:00:51]}  Ke7 {[%clk 0:00:10]} 31. Ra7 {[%clk 0:00:51]}  Rc8 {[%clk 0:00:06]} 32. f5 {[%clk 0:00:50]}  Be5 {[%clk 0:00:05]} 33. Bd7 {[%clk 0:00:45]}  Rb8 {[%clk 0:00:04]} 34. f6+ {[%clk 0:00:45]}  Kxf6 {[%clk 0:00:02]} 35. Bxh3 {[%clk 0:00:46]}  Rxb2 {[%clk 0:00:03]} 36. Ne4+ {[%clk 0:00:45]}  Ke7 {[%clk 0:00:02]} 37. Rxc7+ {[%clk 0:00:41]}  Bxc7 {[%clk 0:00:01]} 38. Rd7+ {[%clk 0:00:41]} 1-0


[Site "https://www.chess.com"]